Workbook

Sheet Estimate Form
J4: Fill this out first:
J6: SYSTEM NAME | K6: Southwood
J7: PROJECT DISCRIPTION | K7: Dietrich Firs Distribution Extension
J8: COUNTY | K8: Pierce
J9: ENG. FILE # | K9: 3909
J10: PROJECT TYPE | K10: FALSE
B11: =$K$6 -> Southwood | K11: TRUE
B12: =$K$7 -> Dietrich Firs Distribution Extension | J12: TCJA RATE | K12: 0.21
B13: =TODAY() -> 2021-08-27 | J13: WWS OH RATE | K13: 0.31
B14: (Projected Cost Good for 30-Days) | J14: STATE B/O | K14: 0.015
F15: Engineering File # | G15: =K9 -> 3909
D16: *** Construction Materials ***
B17: Unit of Property | C17: Description | D17: Quantity | E17: Unit of Measure | F17: Unit Cost | G17: Total
B18: 103240 | C18: Construction Materials, Pipe, Valves, Fittings, Etc | D18: 1 | E18: LS | F18: =IF(AND(K11,NOT(K10)),'Materials Worksheet'!G47*(1+K13),'Materials Worksheet'!G47) -> 2825.449134 | G18: =F18*D18 -> 2825.449134 | J18: Edit Unit of Property as Needed in All Categories
B19: 103450 | C19: Construction Materials for Services | D19: 1 | E19: LS | F19: =IF(AND(K11,NOT(K10)),'Materials Worksheet'!G59*(1+K13),'Materials Worksheet'!G59) -> 0 | G19: =F19*D19 -> 0
B20: 103480 | C20: Construction Materials for Hydrants | D20: 1 | E20: LS | G20: 0 | J20: NOTE:
G21: 0 | J21: The 21% Federal Income Tax per the "Tax Cuts & Jobs Act" of 2017 applies to CICA projects ONLY.
G22: =D22*F22 -> 0 | J22: State B&O Tax tax applies to CICA projects only.
D23: Sub-Total | G23: =SUM(G18:G22) -> 2825.449134
D24: Contingency | F24: 0.1 | G24: =G23*F24 -> 282.5449134
D25: Sales Tax | F25: 0.09 | G25: =(G23+G24)*F25 -> 279.7194643 | J25: INVENTORY COST SHEET LINK
D26: SUB Total - Materials | G26: =G23+G24+G25 -> 3387.713512
D27: Rounded Up Value | G27: =ROUNDUP(G26,-2) -> 3400 | K27: Use this button for nearside 1" service installation
D29: *** Construction Labor ***
B30: Unit of Property | C30: Description | D30: Quantity | E30: Unit of Measure | F30: Unit Cost | G30: Total
B31: 103240 | C31: Construction Labor - Watermain | D31: 1 | E31: LS | F31: =IF(AND(K11,NOT(K10)),'Construction Labor'!G21*(1+K13),'Construction Labor'!G21) -> 5502 | G31: =F31*D31 -> 5502
B32: 103450 | C32: Construction Labor - Services | D32: 1 | E32: LS | F32: =IF(AND(K11,NOT(K10)),'Construction Labor'!P21*(1+K13),'Construction Labor'!P21) -> 786 | G32: =F32*D32 -> 786
B33: 103480 | C33: Construction Labor - Hydrants | D33: 1 | E33: LS | F33: =IF(AND(K11,NOT(K10)),'Construction Labor'!Y21*(1+K13),'Construction Labor'!Y21) -> 2358 | G33: 2358
G34: 0
C35: WWSC Engineering | D35: 1 | E35: LS | F35: =IF(AND(K11,NOT(K10)),'Eng Labor'!H42*(1+K13),'Eng Labor'!H42) -> 2665.85 | G35: 2665.85
G36: 0
G37: 0
G38: =SUM(G31:G37) -> 11311.85
D39: Contingency | F39: 0.1 | G39: =G38*F39 -> 1131.185
D40: Sub-Total - Construction Labor | G40: =G38+G39 -> 12443.035
D41: Rounded Up Value | G41: =ROUNDUP(G40,-2) -> 12500
D43: *** Outside Contractor ***
B44: Unit of Property | C44: Description | D44: Quantity | E44: Unit of Measure | F44: Unit Cost | G44: Total
C45: County Permits (Encroachment) | D45: 1 | E45: LS | F45: 396 | G45: =F45*D45 -> 396
C46: DOH Review Fees | D46: 1 | E46: LS | G46: =F46*D46 -> 0
C47: Tapping Contractor | D47: 1 | E47: LS | G47: 0
C48: Geotechnical Engineer | D48: 1 | E48: LS | G48: 0
C49: Engineering Consultant | D49: 1 | E49: LS | G49: 0
C50: Land Surveyor | D50: 1 | E50: LS | G50: =F50*D50 -> 0
C51: Land Cost | D51: 1 | E51: LS | G51: 0
C52: Additional Insurance | D52: 1 | E52: LS | G52: 0
C53: Bonding | D53: 1 | E53: LS | G53: 0
C54: Sanitary Facility Rental (Portable Toilet) | D54: 1 | E54: LS | F54: =IF(AND(K11,NOT(K10)),'Construction Labor'!D35*(1+K13),'Construction Labor'!D35) -> 0 | G54: 0
C55: Paving Contractor - Pavement Restoration | D55: 1 | E55: LS | G55: 0
C56: Traffic Control Contractor - Flaggers | D56: 1 | E56: LS | F56: =IF(AND(K11,NOT(K10)),'Construction Labor'!E30*(1+K13),'Construction Labor'!E30) -> 0 | G56: 0
G57: 0
G58: 0
G59: 0
G60: 0
D61: SUB TOTAL | G61: =SUM(G45:G60) -> 396
D62: Contingency | F62: 0.1 | G62: =G61*F62 -> 39.6 | J62: 50% of total project cost | K62: =G72/2 -> 37545.73388
D63: Sub-Total - Outside Contractor | G63: =SUM(G61:G62) -> 435.6 | J63: total cost of watermains | K63: =G18*(1+F24)*(1+F25) + G31*(1+F39) +( G54+G55+G56+G45+G50)*(1+F62) -> 9875.513512
D64: Rounded Up Value | G64: =ROUNDUP(G63,-2) -> 500
J65: enter footage below
D66: Project Subtotal = | G66: =ROUNDUP(G27+G41+G64,-2) -> 16400 | J66: 575 | K66: LF | L66: =IFERROR(K63/J66,0) -> 17.17480611 | M66: $/LF Pre Tax
D67: =IF(OR(K10,K11),IF(AND(K11,NOT(K10)),"Federal Tax per the TCJA =",IF(AND(K10,NOT(K11)),"Construction OH=",IF(AND(K11,K10),"SELECT ONLY ONE PROJECT TYPE")))) -> Federal Tax per the TCJA = | G67: =IF(OR(K10,K11),IF(AND(K11,NOT(K10)),G66*(1/(1-K12)-1),IF(AND(K10,NOT(K11)),(G66*K13),IF(AND(K11,K10),"WARNING")))) -> 4359.493671
D68: State B&O Tax = | G68: =IF(OR(K10,K11),IF(AND(K11,NOT(K10)),SUM(G66:G67)*(1/(1-K14)-1),IF(AND(K10,NOT(K11)),0,IF(AND(K11,K10),"WARNING")))) -> 316.1344214
C69: Anticiapted Developer (onsite) Costs | D69: East Pierce Facilities Charge = | G69: =16*1960.76 -> 31372.16
C70: ='Materials Worksheet'!O75 -> 85183.36635 | D70: Anticipated TCJA Tax = | G70: =C70*(1/(1-K12) - 1) -> 22643.67966
D72: Projected Funds Required = | G72: =SUM(G66:G70) -> 75091.46775
C74: Assumptions:
C75: 1) This document is intended to forecast approximate construction costs based upon current information and similar projects, and is not
C76: intended to accurately represent actual design or construction components or prices.
C77: 2) Totals are rounded to nearest $100

Sheet Materials Worksheet
C1: ='Estimate Form'!$K$6 -> Southwood
C2: =CONCATENATE('Estimate Form'!$K$8, " County") -> Pierce County | F2: Eng. File # | G2: ='Estimate Form'!$K$9 -> 3909
C3: ='Estimate Form'!K7 -> Dietrich Firs Distribution Extension
C4: Engineer's Opinion of Projected Construction Materials Costs
C5: =TODAY() -> 2021-08-27
B8: OFFSITE - PROVIDED BY WWS | J8: ONSITE ASSETS BY OTHERS
A9: Unit of Property | B9: Inventory Number | C9: Task - WATERMAIN | D9: Quantity | E9: Units | F9: Unit Cost | G9: Total | I9: Unit of Property | J9: Inventory Number | K9: Task - WATERMAIN | L9: Quantity | M9: Units | N9: Unit Cost | O9: Total
C14: 8" MJ x FLG GATE VALVE | D14: 1 | E14: EA | F14: 930 | G14: =D14*F14 -> 930 | K14: 8" DUCTILE IRON PIPE | L14: 75 | M14: FT | N14: 18.22 | O14: =L14*N14 -> 1366.5
C15: 8 x 8 TAPPING SLEEVE | D15: 1 | E15: EA | F15: 851 | G15: 851 | K15: 6" DUCTILE IRON PIPE | L15: 500 | M15: FT | N15: 17.2 | O15: 8600
C16: bedding, locator wire, blocking | D16: 1 | E16: LS | F16: 300 | G16: =D16*F16 -> 300 | K16: 8" MEGALUG PK/KIT (DI) | L16: 6 | M16: EA | N16: 56 | O16: =L16*N16 -> 336
C17: AWWA Gate Valve Assembly | D17: 1 | E17: EA | F17: ='Materials Assemblies'!P29 -> 62.7914 | G17: =D17*F17 -> 62.7914 | K17: 8" MJ 90 ELBOW | L17: 2 | M17: EA | N17: 113 | O17: 226
C18: 8" FLG BOLT & GSKT KIT | D18: 1 | E18: EA | F18: 13.04 | G18: 13.04 | K18: 6" MJ SOLID CAP | L18: 1 | M18: EA | N18: 26 | O18: 26
G19: 0 | K19: bedding, locator wire, blocking, misc | L19: 1 | M19: LS | N19: 1500 | O19: 1500
G20: 0 | K20: 6" MJ REDUCER | L20: 1 | M20: EA | N20: 45 | O20: 45
G21: 0 | K21: Blow-Off Assembly | L21: 1 | M21: LS | N21: ='Materials Assemblies'!G101 -> 564.85775 | O21: 564.85775
G22: 0 | K22: Temp Testing Service | L22: 1 | M22: LS | N22: ='Materials Assemblies'!P22 -> 162.58 | O22: 162.58
G23: 0
G24: 0 | K24: Construction Labor (4 person Crew @ $75/hr) | L24: 80 | M24: hr | N24: =75*4 -> 300 | O24: =L24*N24 -> 24000
G25: 0 | K25: Engineering | L25: 1 | M25: LS | N25: 15000 | O25: 15000
G26: 0 | O26: 0
G27: 0 | K27: Traffic Control | L27: 1 | M27: LS | N27: 3200 | O27: 3200
G28: 0 | O28: 0
G29: 0 | K29: Open Cut - Pavement Restoration | L29: 1 | M29: LS | N29: 3500 | O29: 3500
G30: 0 | O30: 0
G31: 0 | O31: 0
G32: 0 | O32: 0
G33: 0 | O33: 0
G34: 0 | O34: 0
G35: 0 | O35: 0
G36: 0 | O36: 0
G37: 0 | O37: 0
G38: 0 | O38: 0
G39: 0 | O39: 0
G40: 0 | O40: 0
G41: =D41*F41 -> 0 | O41: 0
G42: 0 | O42: 0
G43: 0 | O43: 0
G44: 0 | O44: 0
G45: 0 | O45: 0
F47: Sub-Total | G47: =SUM(G14:G45) -> 2156.8314 | N47: Sub-Total | O47: =SUM(O14:O45) -> 58526.93775
N48: $/ft | O48: =O47/SUM(L14,L15) -> 101.7859787
A50: Unit of Property | B50: Inventory Number | C50: Task - SERVICES | D50: Quantity | E50: Units | F50: Unit Cost | G50: Total | I50: Unit of Property | J50: Inventory Number | K50: Task - SERVICES | L50: Quantity | M50: Units | N50: Unit Cost | O50: Total
A53: 103450 | C53: 5/8 x 3/4 Meter Single Service Assembly w/ 1" Service Line | D53: 0 | E53: EA | F53: ='Materials Assemblies'!G45 -> 371.735 | G53: =D53*F53 -> 0 | I53: 103450 | K53: 5/8 x 3/4 Meter Single Service Assembly w/ 1" Service Line | L53: 2 | M53: EA | N53: ='Materials Assemblies'!G45 -> 371.735 | O53: =L53*N53 -> 743.47
G54: 0 | K54: ='Materials Assemblies'!K31 -> 5/8 x 3/4 Meter Double Service Assembly w/ 1" Service Line | L54: 7 | M54: EA | N54: ='Materials Assemblies'!P47 -> 756.185 | O54: 5293.295
G55: 0 | O55: 0
G56: 0 | K56: Construction Labor (4 person Crew @ $75/hr) | L56: 48 | M56: hr | N56: =75*4 -> 300 | O56: 14400
G57: 0 | O57: 0
F59: Sub-Total | G59: =SUM(G53:G57) -> 0 | N59: Sub-Total | O59: =SUM(O53:O57) -> 20436.765
A64: Unit of Property | B64: Inventory Number | C64: Task - HYDRANTS | D64: Quantity | E64: Units | F64: Unit Cost | G64: Total | I64: Unit of Property | J64: Inventory Number | K64: Task - HYDRANTS | L64: Quantity | M64: Units | N64: Unit Cost | O64: Total
A67: 103480 | C67: Fire Hydrant | D67: 0 | E67: EA | F67: ='Materials Assemblies'!G28 -> 3219.6636 | G67: =D67*F67 -> 0 | I67: 103480 | K67: Fire Hydrant | L67: 1 | M67: EA | N67: ='Materials Assemblies'!G28 -> 3219.6636 | O67: =L67*N67 -> 3219.6636
G68: =D68*F68 -> 0 | K68: Construction Labor (4 person Crew @ $75/hr) | L68: 10 | M68: hr | N68: =75*4 -> 300 | O68: =L68*N68 -> 3000
G69: =D69*F69 -> 0 | O69: =L69*N69 -> 0
G70: =D70*F70 -> 0 | O70: =L70*N70 -> 0
G71: =D71*F71 -> 0 | O71: =L71*N71 -> 0
F73: Sub-Total | G73: =SUM(G67:G71) -> 0 | N73: Sub-Total | O73: =SUM(O67:O71) -> 6219.6636
N75: TOTAL | O75: =SUM(O73,O59,O47) -> 85183.36635
M78: CIAC TAX (21%) | O78: =O75*(1/(1-0.21)-1) -> 22643.67966

Sheet Materials Assemblies
C1: ='Estimate Form'!$K$6 -> Southwood
C2: =CONCATENATE('Estimate Form'!$K$8, " County") -> Pierce County | F2: Eng. File # | G2: ='Estimate Form'!$K$9 -> 3909
C3: ='Estimate Form'!K7 -> Dietrich Firs Distribution Extension
C4: Engineer's Opinion of Projected Construction Materials Costs
C5: =TODAY() -> 2021-08-27
C10: Assembly Items Listed Below
C13: Hydrant Assembly
B14: 60600033 | C14: 6" Dry-Barrel Hydrant | D14: 1 | E14: EA | F14: =[1]Extract!$O$1606 -> 1881.12 | G14: =D14*F14 -> 1881.12 | L14: Temporary Testing Service
B15: 60500031 | C15: 5" Storz Adaptor | D15: 1 | E15: EA | F15: =[1]Extract!$O$1604 -> 136.5 | G15: 136.5 | K15: 30800181 | L15: 8 x 1 TAPPING SADDLE | M15: 1 | N15: EA | O15: =[1]Extract!$O$689 -> 51.57 | P15: =M15*O15 -> 51.57
B16: 60600081 | C16: 18" Valve Box Riser /w Lid | D16: 1 | E16: EA | F16: =[1]Extract!$O$1609 -> 35.54 | G16: 35.54 | K16: 40100255 | L16: 1" CORP STOP VALVE-NO LEAD | M16: 1 | N16: EA | O16: =[1]Extract!$O$831 -> 28.89 | P16: 28.89
B17: 60600082 | C17: CI Valve Box Bottom Section | D17: 1 | E17: EA | F17: =[1]Extract!$O$1610 -> 22.23 | G17: 22.23 | K17: 60100012 | L17: 1" CL 200 POLY PIPE | M17: 12 | N17: LF | O17: =[1]Extract!$O$1568 -> 0.49 | P17: 5.88
B18: 30600194 | C18: 6"x6" Tee, MJxFLG | D18: 1 | E18: EA | F18: =[1]Extract!$O$643 -> 114.89 | G18: 114.89 | K18: 40100220 | L18: 1" ANGLE STOP VALVE-NO LEAD | M18: 1 | N18: EA | O18: =[1]Extract!$O$824 -> 49.57 | P18: 49.57
B19: 30600141 | C19: 6" Ductile Iron Pipe Cl 50 | D19: 12 | E19: LF | F19: =[1]Extract!$O$632 -> 17.11 | G19: 205.32 | K19: 100034060 | L19: RES METER BOX w/lid, STANDARD | M19: 1 | N19: EA | O19: =[1]Extract!$O$1950 -> 26.67 | P19: 26.67
B20: 30600028 | C20: 6" MEGALUG PK/KIT (DI) | D20: 2 | E20: EA | F20: =[1]Extract!$O$613 -> 41.64 | G20: 83.28 | P20: 0
B21: 30800029 | C21: 8" MEGALUG PK/KIT (PVC) | D21: 2 | E21: EA | F21: =[1]Extract!$O$664 -> 66 | G21: 132
B22: 30600030 | C22: 6" FLG BOLT & GSKT KIT | D22: 2 | E22: EA | F22: =[1]Extract!$O$615 -> 9.55 | G22: 19.1 | O22: Sub-Total | P22: =SUM(P15:P20) -> 162.58
B23: 40600285 | C23: 6" MJ x FLG GATE VALVE | D23: 1 | E23: EA | F23: =[1]Extract!$O$923 -> 577.94 | G23: 577.94
C24: GRAVEL 1 1/4 minus | D24: 0.5 | E24: CY | F24: =[1]Extract!$O$2006 -> 9.8 | G24: 4.9 | L24: AWWA Gate Valve Assembly
B25: 125004816 | C25: Support Blocks | D25: 6 | E25: EA | F25: =[1]Extract!$O$2002 -> 1.1406 | G25: 6.8436 | K25: 60600081 | L25: 18" Valve Box Riser /w Lid | M25: 1 | N25: EA | O25: =[1]Extract!$O$1609 -> 35.54 | P25: =O25*M25 -> 35.54
G26: 0 | K26: 60600082 | L26: CI Valve Box Bottom Section | M26: 1 | N26: EA | O26: =[1]Extract!$O$1610 -> 22.23 | P26: =O26*M26 -> 22.23
K27: 51400155 | L27: LOCATOR WIRE, # 14 | M27: 6 | N27: LF | O27: =[1]Extract!$O$1521 -> 0.0765 | P27: 0.459
F28: Sub-Total | G28: =SUM(G14:G26) -> 3219.6636 | K28: 125004816 | L28: Support Blocks | M28: 4 | N28: EA | O28: =[1]Extract!$O$2002 -> 1.1406 | P28: 4.5624
O29: Sub-Total | P29: =SUM(P25:P28) -> 62.7914
C31: 5/8 x 3/4 Meter Single Service Assembly w/ 1" Service Line | K31: 5/8 x 3/4 Meter Double Service Assembly w/ 1" Service Line
B32: 30800181 | C32: 8 x 1 TAPPING SADDLE | D32: 1 | E32: EA | F32: =[1]Extract!$O$689 -> 51.57 | G32: =D32*F32 -> 51.57 | K32: 30800181 | L32: 8 x 1 TAPPING SADDLE | M32: 1 | N32: EA | O32: =[1]Extract!$O$689 -> 51.57 | P32: =M32*O32 -> 51.57
B33: 40100255 | C33: 1" CORP STOP VALVE-NO LEAD | D33: 1 | E33: EA | F33: =[1]Extract!$O$831 -> 28.89 | G33: 28.89 | K33: 40100255 | L33: 1" CORP STOP VALVE-NO LEAD | M33: 1 | N33: EA | O33: =[1]Extract!$O$831 -> 28.89 | P33: 28.89
B34: 60100012 | C34: 1" CL 200 POLY PIPE | D34: 30 | E34: LF | F34: =[1]Extract!$O$1568 -> 0.49 | G34: 14.7 | K34: 60100012 | L34: 1" CL 200 POLY PIPE | M34: 30 | N34: LF | O34: =[1]Extract!$O$1568 -> 0.49 | P34: 14.7
B35: 51400155 | C35: LOCATOR WIRE, # 14 | D35: 30 | E35: LF | F35: =[1]Extract!$O$1521 -> 0.0765 | G35: 2.295 | K35: 51400155 | L35: LOCATOR WIRE, # 14 | M35: 30 | N35: LF | O35: =[1]Extract!$O$1521 -> 0.0765 | P35: 2.295
C36: Meter Setter - Ford VH72-12W-11-44-NL | D36: 1 | E36: EA | F36: =[1]Extract!$O$1946 -> 144.94 | G36: 144.94 | L36: Meter Setter - Ford VH72-12W-11-44-NL | M36: 2 | N36: EA | O36: =[1]Extract!$O$1946 -> 144.94 | P36: 289.88
B37: 60100021 | C37: 1" PJ x MIPT POLY ADAPTOR-NO LEAD | D37: 1 | E37: EA | F37: =[1]Extract!$O$1559 -> 36.67 | G37: 36.67 | L37: 1" x 18" BRASS NIPPLE | M37: 4 | N37: EA | O37: 60 | P37: 240
C38: 1" x 18" BRASS NIPPLE | D38: 1 | E38: EA | F38: 60 | G38: 60 | K38: 100034060 | L38: RES METER BOX w/lid, STANDARD | M38: 2 | N38: EA | O38: =[1]Extract!$O$1950 -> 26.67 | P38: 53.34
B39: 100034060 | C39: RES METER BOX w/lid, STANDARD | D39: 1 | E39: EA | F39: =[1]Extract!$O$1950 -> 26.67 | G39: 26.67 | L39: 2x4 Marker | M39: 2 | N39: EA | O39: 6 | P39: 12
C40: 2x4 Marker | D40: 1 | E40: EA | F40: 6 | G40: 6 | K40: 60100021 | L40: 1" PJ x MIPT POLY ADAPTOR-NO | M40: 1 | N40: EA | O40: =[1]Extract!$O$1559 -> 36.67 | P40: 36.67
G41: 0 | K41: 80100190 | L41: 1" BRASS TEE | M41: 1 | N41: EA | O41: =[1]Extract!$O$1784 -> 8.6 | P41: 8.6
G42: 0 | K42: 80100090 | L42: 1" 90 BRASS ELBOW | M42: 3 | N42: EA | O42: =[1]Extract!$O$1768 -> 6.08 | P42: 18.24
G43: 0
P44: 0
F45: Sub-Total | G45: =SUM(G32:G43) -> 371.735
O47: Sub-Total | P47: =SUM(P32:P44) -> 756.185
C52: 5/8 x 3/4 Meter Single Service Assembly w/ 1½ Service Line | K52: 5/8 x 3/4 Meter Double Service Assembly w/ 1½" Service Line
B53: 30800183 | C53: 8 x 2 TAPPING SADDLE | D53: 1 | E53: EA | F53: =[1]Extract!$O$690 -> 99.47 | G53: =D53*F53 -> 99.47 | K53: 30800183 | L53: 8 x 2 TAPPING SADDLE | M53: 1 | N53: EA | O53: =[1]Extract!$O$690 -> 99.47 | P53: =M53*O53 -> 99.47 | R53: 3/4 x 3/4 Meter Double Service Assembly w/ 1½" Service Line
B54: 40200255 | C54: 2" CORP STOP VALVE-NO LEAD | D54: 1 | E54: EA | F54: =[1]Extract!$O$878 -> 216.67 | G54: 216.67 | K54: 40200255 | L54: 2" CORP STOP VALVE-NO LEAD | M54: 1 | N54: EA | O54: =[1]Extract!$O$878 -> 216.67 | P54: 216.67 | R54: 30800183 | S54: 8 x 2 TAPPING SADDLE | T54: 1 | U54: EA | V54: 128.37 | W54: 128.37
B55: 60112012 | C55: 1-1-2" CL 200 POLY PIPE | D55: 30 | E55: LF | F55: =[1]Extract!$O$1579 -> 1.35 | G55: 40.5 | K55: 60112012 | L55: 1-1-2" CL 200 POLY PIPE | M55: 30 | N55: LF | O55: =[1]Extract!$O$1579 -> 1.35 | P55: 40.5 | R55: 40200255 | S55: 2" CORP STOP VALVE-NO LEAD | T55: 1 | U55: EA | V55: 288.05 | W55: 288.05
B56: 51400155 | C56: LOCATOR WIRE, # 14 | D56: 30 | E56: LF | F56: =[1]Extract!$O$1521 -> 0.0765 | G56: 2.295 | K56: 51400155 | L56: LOCATOR WIRE, # 14 | M56: 30 | N56: LF | O56: =[1]Extract!$O$1521 -> 0.0765 | P56: 2.295 | R56: 60112012 | S56: 1-1-2" CL 200 POLY PIPE | T56: 30 | U56: LF | V56: 2.23 | W56: 66.97
C57: Meter Setter - Ford VH72-12W-11-66-NL | D57: 1 | E57: EA | F57: =[1]Extract!$O$1946 -> 144.94 | G57: 144.94 | L57: Meter Setter - Ford VH72-12W-11-66-NL | M57: 2 | N57: EA | O57: =[1]Extract!$O$1946 -> 144.94 | P57: 289.88 | R57: 51400155 | S57: LOCATOR WIRE, # 14 | T57: 30 | U57: LF | V57: 2.96 | W57: 88.84
B58: 60112021 | C58: 1-1/2" PJ x MIPT POLY ADAPTOR | D58: 1 | E58: EA | F58: =[1]Extract!$O$1583 -> 67.9 | G58: 67.9 | L58: 1½" x 18" BRASS NIPPLE | M58: 4 | N58: EA | O58: 60 | P58: 240 | S58: Meter Setter - Ford VH73-12W-11-66-NL | T58: 2 | U58: EA | V58: 220 | W58: 440
C59: 1½" x 18" BRASS NIPPLE | D59: 1 | E59: EA | F59: 60 | G59: 60 | K59: 100034060 | L59: RES METER BOX w/lid, STANDARD | M59: 2 | N59: EA | O59: =[1]Extract!$O$1950 -> 26.67 | P59: 53.34 | S59: 1½" x 18" BRASS NIPPLE | T59: 2 | U59: EA | V59: 60 | W59: 120
B60: 100034060 | C60: RES METER BOX w/lid, STANDARD | D60: 1 | E60: EA | F60: =[1]Extract!$O$1950 -> 26.67 | G60: 26.67 | L60: 2x4 Marker | M60: 2 | N60: EA | O60: 6 | P60: 12 | R60: 100034060 | S60: RES METER BOX w/lid, STANDARD | T60: 2 | U60: EA | V60: 37.06 | W60: 74.11
C61: 2x4 Marker | D61: 1 | E61: EA | F61: 6 | G61: 6 | K61: 60112021 | L61: 1-1/2" PJ x MIPT POLY ADAPTOR | M61: 2 | N61: EA | O61: =[1]Extract!$O$1583 -> 67.9 | P61: 135.8 | S61: 2x4 Marker | T61: 2 | U61: EA | V61: 6 | W61: 12
C62: 2"x1½" Brass Bell Reducer | D62: 1 | E62: EA | F62: 45 | G62: 45 | K62: 80112190 | L62: 1-1/2" BRASS TEE | M62: 1 | N62: EA | O62: =[1]Extract!$O$1793 -> 17.55 | P62: 17.55 | R62: 60112021 | S62: 1-1/2" PJ x MIPT POLY ADAPTOR | T62: 2 | U62: EA | V62: 87.67 | W62: 175.35
G63: 0 | L63: 1½" 90 BRASS ELBOW | M63: 3 | N63: EA | O63: =[1]Extract!$O$1787 -> 15 | P63: 45 | R63: 80112190 | S63: 1-1/2" BRASS TEE | T63: 1 | U63: EA | V63: 22.01 | W63: 22.01
G64: 0 | S64: 1½" 90 BRASS ELBOW | T64: 3 | U64: EA | V64: 22 | W64: 66
P65: 0 | R65: 80100134 | S65: 1½" x 18" BRASS NIPPLE | T65: 2 | U65: EA | V65: 60 | W65: 120
F66: Sub-Total | G66: =SUM(G53:G64) -> 709.445 | W66: $-
O68: Sub-Total | P68: =SUM(P53:P65) -> 1152.505
V69: Sub-Total | W69: 1601.7
C73: 1" Meter Single Service Assembly | K73: 1½" Meter Single Service Assembly
B74: 30800183 | C74: 8 x 2 TAPPING SADDLE | D74: 1 | E74: EA | F74: =[1]Extract!$O$690 -> 99.47 | G74: =D74*F74 -> 99.47 | K74: 30800183 | L74: 8 x 2 TAPPING SADDLE | M74: 1 | N74: EA | O74: =[1]Extract!$O$690 -> 99.47 | P74: =M74*O74 -> 99.47
B75: 40200255 | C75: 2" CORP STOP VALVE-NO LEAD | D75: 1 | E75: EA | F75: =[1]Extract!$O$878 -> 216.67 | G75: 216.67 | K75: 40200255 | L75: 2" CORP STOP VALVE-NO LEAD | M75: 1 | N75: EA | O75: =[1]Extract!$O$878 -> 216.67 | P75: 216.67
B76: 60112012 | C76: 1-1-2" CL 200 POLY PIPE | D76: 30 | E76: LF | F76: =[1]Extract!$O$1579 -> 1.35 | G76: 40.5 | K76: 60200012 | L76: 2" CL 200 POLY PIPE | M76: 30 | N76: LF | O76: =[1]Extract!$O$1593 -> 2.09 | P76: 62.7
B77: 51400155 | C77: LOCATOR WIRE, # 14 | D77: 30 | E77: LF | F77: =[1]Extract!$O$1521 -> 0.0765 | G77: 2.295 | K77: 51400155 | L77: LOCATOR WIRE, # 14 | M77: 30 | N77: LF | O77: =[1]Extract!$O$1521 -> 0.0765 | P77: 2.295
C78: Meter Setter - Ford VH74-12W-11-66-NL | D78: 1 | E78: EA | F78: =[1]Extract!$O$1945 -> 232.98 | G78: 232.98 | L78: Meter Setter - Ford VBHH76-18HBHC-11-77 | M78: 1 | N78: EA | O78: 1477 | P78: 1477
C79: 1½" x 18" BRASS NIPPLE | D79: 1 | E79: EA | F79: 60 | G79: 60 | L79: 2" x 18" BRASS NIPPLE | M79: 1 | N79: EA | O79: 41.33 | P79: 41.33
B80: 100034060 | C80: RES METER BOX w/lid, STANDARD | D80: 1 | E80: EA | F80: =[1]Extract!$O$1950 -> 26.67 | G80: =D80*F80 -> 26.67 | K80: 80200120 | L80: 2" x CLOSE BRASS NIPPLE | M80: 2 | N80: EA | O80: =[1]Extract!$O$1808 -> 9.7 | P80: 19.4
B81: 100100158 | C81: 1" METER w/HRE REG+ERT | D81: 1 | E81: EA | F81: =[1]Extract!$O$1966 -> 305.94 | G81: =D81*F81 -> 305.94 | L81: 2" Brass Elbow | M81: 2 | N81: EA | O81: =[1]Extract!$O$1806 -> 45 | P81: 90
C82: 2x4 Marker | D82: 1 | E82: EA | F82: 6 | G82: =D82*F82 -> 6 | K82: 100034060 | L82: RES METER BOX w/lid, STANDARD | M82: 1 | N82: EA | O82: =[1]Extract!$O$1950 -> 26.67 | P82: =M82*O82 -> 26.67
C83: 2"x1½" Brass Bell Reducer | D83: 1 | E83: EA | F83: 45 | G83: =D83*F83 -> 45 | L83: 2x4 Marker | M83: 1 | N83: EA | O83: 6 | P83: =M83*O83 -> 6
F85: Sub-Total | G85: =SUM(G74:G83) -> 1035.525 | O85: Sub-Total | P85: =SUM(P74:P83) -> 2041.535
C89: 2" Blowoff Assembly | J89: Wellhead Enclosure Assembly
C90: 2" THREADED GATE AWWA | D90: 1 | E90: EA | F90: =[1]Extract!$O$882 -> 276.39 | G90: =D90*F90 -> 276.39 | K90: Well 2.5 X 8
C91: 8 x 2 TAPPING SADDLE | D91: 1 | E91: EA | F91: =[1]Extract!$O$690 -> 99.47 | G91: 99.47 | J91: Unit of Prop | K91: Inv No
C92: 18" VALVE BOX RISER w/LID | D92: 1 | E92: EA | F92: =[1]Extract!$O$1609 -> 35.54 | G92: 35.54 | J92: 103240 | L92: 2.5" sch 40 galv pipe (21ft lengths) | M92: 12 | N92: EA | O92: =[1]Extract!$O$460*21 -> 170.31 | P92: =O92*M92 -> 2043.72
C93: VALVE BOX BOTTOM CI | D93: 1 | E93: EA | F93: =[1]Extract!$O$1610 -> 22.23 | G93: 22.23 | J93: 103240 | L93: 2.5" wye fitting | M93: 0 | N93: EA | O93: 550 | P93: =O93*M93 -> 0
C94: 2 x 6 GALV NIPPLE | D94: 4 | E94: EA | F94: =[1]Extract!$O$430 -> 4.66 | G94: 18.64 | J94: 103240 | L94: 2.5" collumn check valve | M94: 2 | N94: EA | O94: =[1]Extract!$O$892 -> 151.62 | P94: 303.24
C95: 2" GALVANIZED PIPE | D95: 6 | E95: LF | F95: =[1]Extract!$O$434 -> 6.42 | G95: 38.52 | J95: 103240 | L95: 8"x 2-1/2" SPIDER | M95: 2 | N95: EA | O95: =[1]Extract!$O$1690 -> 10.33 | P95: 20.66
C96: 2" GALV 90 ELBOW | D96: 4 | E96: EA | F96: =[1]Extract!$O$419 -> 7.24 | G96: 28.96 | J96: 103240 | L96: 2.5" x 3" bell red galv | M96: 1 | N96: EA | O96: 22 | P96: 22
C97: 2" PVC ADAPTOR FIP | D97: 2 | E97: EA | F97: =[1]Extract!$O$100 -> 9.67 | G97: 19.34 | J97: 103240 | L97: 2-1/2" GALV COUPLING | M97: 12 | N97: EA | O97: =[1]Extract!$O$444 -> 14.36 | P97: 172.32
C98: 2" PVC PIPE, CL 200 | D98: 20 | E98: LF | F98: =[1]Extract!$O$113 -> 0.65 | G98: 13 | J98: 103240 | L98: #6-4 flat jacket subcable | M98: 300 | N98: FT | O98: 1.9 | P98: 570
C99: BEDDING SAND | D99: 2.5 | E99: CY | F99: =[1]Extract!$O$1999 -> 5.1071 | G99: 12.76775 | J99: 103240 | L99: sounding tube | M99: 260 | N99: FT | O99: =[1]Extract!$O$1624 -> 1.84 | P99: 478.4
J100: 103240 | L100: sounding tube screen | M100: 20 | N100: FT | O100: 1.84 | P100: 36.8
F101: Sub-Total | G101: =SUM(G90:G100) -> 564.85775 | J101: 103240 | L101: assorted fittings | M101: 1 | N101: EA | O101: 100 | P101: 100
J102: 103240 | L102: Well Seal | M102: 1 | N102: EA | O102: 500 | P102: 500
J103: 103240 | L103: Wellhead Enclosure (Hubbel) | M103: 1 | N103: EA | O103: 2900 | P103: 2900
J104: 103240 | L104: 2-1/2" BALL VALVE-NO LEAD | M104: 2 | N104: EA | O104: =[1]Extract!$O$891 -> 81.4 | P104: 162.8
C105: 2" Air/Vac Assembly | J105: 103240 | L105: 1" duck bill syle check valve | M105: 1 | N105: ea | O105: 40 | P105: 40
C106: 2" THREADED GATE AWWA | D106: 1 | E106: EA | F106: =[1]Extract!$O$882 -> 276.39 | G106: =D106*F106 -> 276.39 | L106: Pad | M106: 1 | N106: ea | O106: 1500 | P106: 1500
C107: 8 x 2 TAPPING SADDLE | D107: 1 | E107: EA | F107: =[1]Extract!$O$690 -> 99.47 | G107: 99.47
C108: 18" VALVE BOX RISER w/LID | D108: 1 | E108: EA | F108: =[1]Extract!$O$1609 -> 35.54 | G108: 35.54
C109: VALVE BOX BOTTOM CI | D109: 1 | E109: EA | F109: =[1]Extract!$O$1610 -> 22.23 | G109: 22.23 | O109: Sub-Total | P109: =SUM(P92:P106) -> 8849.94
C110: 2 x 6 GALV NIPPLE | D110: 7 | E110: EA | F110: =[1]Extract!$O$430 -> 4.66 | G110: 32.62
C111: 2" AIR/VAC VALVE, ARI #D-040 | D111: 1 | E111: EA | F111: =[1]Extract!$O$887 -> 288 | G111: 288
C112: 2" GALVANIZED PIPE | D112: 7 | E112: LF | F112: =[1]Extract!$O$434 -> 6.42 | G112: 44.94
C113: 2" GALV 90 ELBOW | D113: 4 | E113: EA | F113: =[1]Extract!$O$419 -> 7.24 | G113: 28.96
C114: 2" PVC ADAPTOR FIP | D114: 2 | E114: EA | F114: =[1]Extract!$O$100 -> 9.67 | G114: 19.34 | J114: Chlorine Analyzer with Cell Modem
C115: 2" GALV 180 ELBOW | D115: 1 | E115: EA | F115: =[1]Extract!$O$437 -> 76.71 | G115: 76.71
C116: 2" ENVIRO STRAINER-NO LEAD | D116: 1 | E116: EA | F116: =[1]Extract!$O$880 -> 44.55 | G116: 44.55 | J116: Unit of Prop | K116: Inv No
C117: 2" GALV CAP | D117: 1 | E117: EA | F117: =[1]Extract!$O$415 -> 3.69 | G117: 3.69 | J117: 103320 | L117: Kuntze Chlorine Analyzer w/ gateway | M117: 1 | N117: EA | O117: 6100 | P117: =O117*M117 -> 6100
C118: 2" GALV REDUCING TEE | D118: 2 | E118: EA | F118: =[1]Extract!$O$439 -> 10.48 | G118: 20.96 | J118: 103760 | L118: CradlePoint Cell Modem | M118: 1 | N118: EA | O118: 550 | P118: =O118*M118 -> 550
C119: 3/4" ANGLE STOP VALVE-NO LEAD | D119: 1 | E119: EA | F119: =[1]Extract!$O$807 -> 31.13 | G119: 31.13 | J119: 103760 | L119: CA-400 NM-SMA-20 Cable | M119: 1 | N119: EA | O119: 65 | P119: 65
C120: 3/4 x 18 GALV NIPPLE | D120: 2 | E120: EA | F120: =[1]Extract!$O$294 -> 0.9 | G120: 1.8 | J120: 103760 | L120: Gradle Point High Gain Antennae | M120: 1 | N120: EA | O120: 135 | P120: 135
C121: 3/4 x 6 GALV NIPPLE | D121: 1 | E121: EA | F121: =[1]Extract!$O$290 -> 1.255 | G121: 1.255 | J121: 103760 | L121: 50 ft CAT5 Ethernet Cable | M121: 1 | N121: EA | O121: 15 | P121: 15
C122: 3/4" GALV 90 ELBOW | D122: 1 | E122: EA | F122: =[1]Extract!$O$277 -> 4.83 | G122: 4.83 | J122: 103760 | L122: mounting hardware | M122: 1 | N122: EA | O122: 30 | P122: 30
C123: EXTRA LG METER BOX LID, STD | D123: 1 | E123: EA | F123: =[1]Extract!$O$1971 -> 111.11 | G123: 111.11 | L123: DPD Colorimeter | M123: 1 | N123: EA | O123: 463 | P123: 463
C124: 1 1/2 x 6 GALV NIPPLE | D124: 3 | E124: EA | F124: =[1]Extract!$O$373 -> 3.48 | G124: 10.44
C125: 1-1/2" GALV 90 ELBOW | D125: 1 | E125: EA | F125: =[1]Extract!$O$361 -> 3.86 | G125: 3.86 | O125: Sub-Total | P125: =SUM(P117:P123) -> 7358
C126: 1-1/2" GALV UNION | D126: 1 | E126: EA | F126: =[1]Extract!$O$383 -> 8.47 | G126: 8.47
C127: CONCRETE VALVE BOX MARKER | D127: 1 | E127: EA | F127: =[1]Extract!$O$1611 -> 23.68 | G127: 23.68
C128: 2" PVC PIPE, CL 200 | D128: 20 | E128: LF | F128: =[1]Extract!$O$113 -> 0.65 | G128: 13
C129: BLOCKS 2/8 4/8 4/16 - AVG | D129: 3 | E129: EA | F129: =[1]Extract!$O$2002 -> 1.1406 | G129: 3.4218
F131: Sub-Total | G131: =SUM(G106:G129) -> 1206.3968
C136: 2.5" Pump Suspension Assembly | D136: Enter Pump Suction Depth: | G136: 130 | H136: FT
B137: 40212240 | C137: 2-1/2" INLINE CHK VALVE (DUCTILE IRON) | D137: =ROUND($G$136/80,0) -> 2 | E137: EA | F137: =[1]Extract!$O$892 -> 151.62 | G137: =D137*F137 -> 303.24
B138: 70822171 | C138: 8"x 2-1/2" SPIDER | D138: =ROUND($G$136/80,0) -> 2 | E138: EA | F138: =[1]Extract!$O$1690 -> 10.33 | G138: 20.66
B139: 20212190 | C139: 2-1/2" GALV TEE | D139: 1 | E139: EA | F139: =[1]Extract!$O$463 -> 42.47 | G139: 42.47
B140: 20212140 | C140: 2-1/2" GALVANIZED PIPE | D140: =G136 -> 130 | E140: FT | F140: =[1]Extract!$O$460 -> 8.11 | G140: 1054.3
B141: 20212070 | C141: 2-1/2" GALV COUPLING | D141: =ROUND(G136/20,0) -> 7 | E141: EA | F141: =[1]Extract!$O$444 -> 14.36 | G141: 100.52
B142: 70100156 | C142: 1" SCH 80 SOUNDING TUBE | D142: =G136 -> 130 | E142: FT | F142: =[1]Extract!$O$1624 -> 1.84 | G142: 239.2
B143: 60038100 | C143: 3/8" OD PE TUBING | D143: =G136 -> 130 | E143: FT | F143: =[1]Extract!$O$1565 -> 0.25 | G143: 32.5
F145: Sub-Total | G145: =SUM(G137:G143) -> 1792.89

Sheet Construction Labor
D1: ='Estimate Form'!$K$6 -> Southwood
D2: =CONCATENATE('Estimate Form'!$K$8, " County") -> Pierce County | H2: Eng. File # | I2: ='Estimate Form'!$K$9 -> 3909
D3: ='Estimate Form'!$K$7 -> Dietrich Firs Distribution Extension
D4: Engineer's Opinion of Projected Construction Materials Costs
D5: =TODAY() -> 2021-08-27
A7: WWS Construction Crew- Mains | J7: WWS Construction Crew- Services | S7: WWS Construction Crew- Hydrants
F9: Rate | G9: Sub-Total | O9: Rate | P9: Sub-Total | X9: Rate | Y9: Sub-Total
A10: 1 Man & Vac Truck | D10: 8 | E10: HRS | F10: 75 | G10: =D10*F10 -> 600 | J10: 1 Man & Vac Truck | N10: HRS | O10: 75 | P10: =M10*O10 -> 0 | S10: 1 Man & Vac Truck | W10: HRS | X10: 75 | Y10: =V10*X10 -> 0
A11: 1 Man & Boom Truck | E11: HRS | F11: 75 | G11: =D11*F11 -> 0 | J11: 1 Man & Boom Truck | N11: HRS | O11: 75 | P11: =M11*O11 -> 0 | S11: 1 Man & Boom Truck | W11: HRS | X11: 75 | Y11: =V11*X11 -> 0
A12: 1 Man & Backhoe - Trench | E12: HRS | F12: 75 | G12: =D12*F12 -> 0 | J12: 1 Man & Backhoe - Trench | N12: HRS | O12: 75 | P12: =M12*O12 -> 0 | S12: 1 Man & Backhoe - Trench | W12: HRS | X12: 75 | Y12: =V12*X12 -> 0
A13: 1 Man & Backhoe - Comp | E13: HRS | F13: 75 | G13: 0 | J13: 1 Man & Backhoe - Comp | N13: HRS | O13: 75 | P13: 0 | S13: 1 Man & Backhoe - Comp | W13: HRS | X13: 75 | Y13: 0
A14: Admin/Prep | D14: 8 | E14: HRS | F14: 75 | G14: 600 | J14: Admin/Prep | M14: 8 | N14: HRS | O14: 75 | P14: =M14*O14 -> 600 | S14: Admin/Prep | V14: 8 | W14: HRS | X14: 75 | Y14: 600
A15: 1 Man & Truck | D15: 8 | E15: HRS | F15: 75 | G15: 600 | J15: 1 Man & Truck | N15: HRS | O15: 75 | P15: 0 | S15: 1 Man & Truck | W15: HRS | X15: 75 | Y15: 0
A16: 2 Men & Truck | D16: 16 | E16: HRS | F16: 150 | G16: 2400 | J16: 2 Men & Truck | N16: HRS | O16: 150 | P16: 0 | S16: 2 Men & Truck | V16: 8 | W16: HRS | X16: 150 | Y16: 1200
A17: 1 Electrician & Truck | E17: HRS | F17: 80 | G17: 0 | J17: 1 Electrician & Truck | N17: HRS | O17: 80 | P17: 0 | S17: 1 Electrician & Truck | W17: HRS | X17: 80 | Y17: 0
A18: 2 Electricians & Truck | E18: HRS | F18: 160 | G18: 0 | J18: 2 Electricians & Truck | N18: HRS | O18: 160 | P18: 0 | S18: 2 Electricians & Truck | W18: HRS | X18: 160 | Y18: 0
G19: 0 | P19: 0 | Y19: 0
F21: Total | G21: =SUM(G10:G19) -> 4200 | O21: Total | P21: =SUM(P10:P19) -> 600 | X21: Total | Y21: =SUM(Y10:Y19) -> 1800
A23: Outside Contractor - No Pilot Car
A25: 1-Flagger | C25: HRS | D25: 30 | E25: =B25*D25 -> 0
A26: 2-Flaggers | C26: HRS | D26: 60 | E26: =B26*D26 -> 0
A27: Signs | C27: DAYS | D27: 105 | E27: =B27*D27 -> 0
A28: Other | C28: LS | E28: =B28*D28 -> 0 | F28: (RCE TRAFFIC CONTROL CUTSHEET)
C30: Sub-total | E30: =SUM(E25:E28) -> 0
A33: Sanitary Facility Rental (Portable Toilet)
B35: Days | C35: 75 | D35: =A35*C35 -> 0

Sheet Eng Labor
D1: ='Estimate Form'!$K$6 -> Southwood | G1: Eng. File # | H1: ='Estimate Form'!$K$9 -> 3909
D2: =CONCATENATE('Estimate Form'!$K$8, " County") -> Pierce County
D3: ='Estimate Form'!$K$7 -> Dietrich Firs Distribution Extension
D4: Engineer's Opinion of Projected Construction Materials Costs
D5: =TODAY() -> 2021-08-27
F8: Employee
D9: Task | E9: Hours | F9: Classification | G9: Rate | H9: Total
D11: Facility Design
D12: Project Setup | E12: 1 | F12: Engineer | G12: 85 | H12: =E12*G12 -> 85
D13: Route Topo | F13: Engineer | G13: 85 | H13: =E13*G13 -> 0
D14: Develop Base Drawings from Topo Info | F14: Engineer | G14: 85 | H14: =E14*G14 -> 0
D15: DOH Project Report and Approval | F15: Engineer | G15: 85 | H15: =E15*G15 -> 0
D16: Design & Draft Watermain Construction Documents | F16: Engineer | G16: 85 | H16: 0
D18: Sub-Total | E18: =SUM(E12:E17) -> 1 | H18: =SUM(H12:H17) -> 85
D20: Revisions per Peer Review Comments
D21: P.E. Peer Review | E21: 2 | F21: Principle Eng | G21: 115 | H21: =E21*G21 -> 230
D22: Revisions to Construction Documents per Peer Review Comments | E22: 2 | F22: Engineer | G22: 85 | H22: 170
D23: Coping & Re-Submittal of Project Report & Construction Documents | F23: Clerical | G23: 60 | H23: 0
D25: Sub-Total | E25: =SUM(E21:E24) -> 4 | H25: =SUM(H21:H24) -> 400
D27: Construction
D28: Pre-Construction Conference with Engineering & Contractor | E28: 2 | F28: Engineer | G28: 85 | H28: =E28*G28 -> 170
D29: Construction Inspection & Pressure Test | E29: 8 | F29: Engineer | G29: 85 | H29: =E29*G29 -> 680
D31: Sub-Total | E31: =SUM(E28:E30) -> 10 | H31: =SUM(H28:H30) -> 850
D33: Record Documents
D34: As-Built Drawings & Testing Validations along with Project Certification Document Preparation | F34: Engineer | G34: 85 | H34: =E34*G34 -> 0
D35: P.E. Project Certification | F35: Principle Eng | G35: =G21 -> 115 | H35: 0
D36: Updating Base Maps & Site Piping | E36: 4 | F36: Engineer | G36: =G22 -> 85 | H36: 340
D37: Project Close-Out | E37: 6 | F37: Clerical | G37: 60 | H37: 360
D39: Sub Total | E39: =SUM(E34:E38) -> 10 | H39: =SUM(H34:H38) -> 700
D42: Projected Total Hours | E42: =E18+E25+E31+E39 -> 25 | H42: =H18+H25+H31+H39 -> 2035
